bitfinex/quotes_SOLUSD_20220118
["timestamp","ask_amount","ask_price","bid_price","bid_amount"]
[1642478810458,0.25,139.42,139.36,24.742]
[1642478810663,0.25,139.42,139.35,40.61133841]
[1642478810859,2.869,139.41,139.35,40.61133841]
[1642478811058,2.869,139.42,139.35,40.61133841]
[1642478811260,0.25,139.4,139.35,40.61133841]
[1642478812258,11.0123,139.42,139.35,40.61133841]
[1642478812457,2.869,139.41,139.35,40.61133841]
[1642478812757,0.25,139.4,139.35,40.61133841]
[1642478813759,0.25,139.4,139.35,40.87133841]
[1642478814165,0.25,139.41,139.35,40.87133841]
[1642478815763,0.25,139.41,139.36,0.25]
[1642478816563,2.869,139.43,139.36,8.629]
[1642478816761,4.05345062,139.44,139.36,42.5139]
[1642478817362,4.05345062,139.45,139.36,42.5139]
[1642478817564,4.05345062,139.45,139.36,53.274]
[1642478818367,37.41225062,139.46,139.36,53.274]
[1642478819570,37.67225062,139.46,139.36,53.274]
[1642478819772,0.25,139.45,139.36,53.274]
[1642478822382,37.67225062,139.46,139.36,53.274]
[1642478823780,0.25,139.45,139.36,53.274]
[1642478828107,23.1439,139.45,139.36,53.274]
[1642478828711,26.0129,139.45,139.36,53.274]
[1642478829312,26.2729,139.45,139.36,53.274]
[1642478829910,23.4039,139.45,139.36,53.274]
[1642478832514,23.4039,139.45,139.36,44.385]
[1642478832711,37.0088358,139.44,139.36,38.385]
[1642478832912,2.869,139.43,139.36,24.7559]
[1642478833111,3.119,139.43,139.36,24.7559]
[1642478833412,10.23,139.42,139.33,2.869]
[1642478833610,2.869,139.41,139.33,2.869]
[1642478833811,3.119,139.41,139.33,2.869]
[1642478834011,13.349,139.41,139.33,2.869]
[1642478834512,85.169,139.41,139.34,41.27256329]
[1642478835511,95.9326,139.41,139.34,41.27256329]
[1642478836517,96.1926,139.41,139.34,41.27256329]
[1642478837317,102.1926,139.41,139.34,41.27256329]
[1642478837517,106.24605062,139.41,139.34,41.27256329]
[1642478838322,34.42605062,139.41,139.34,41.27256329]
[1642478838618,10.74,139.41,139.35,0.25]
[1642478839824,10.74,139.41,139.35,3.119]
[1642478841526,10.74,139.41,139.35,13.8799]
[1642478842327,0.26,139.41,139.35,13.8799]
[1642478842829,23.5772,139.42,139.35,13.8799]
[1642478843028,23.5772,139.42,139.35,38.1371]
[1642478843228,4.05345062,139.44,139.35,44.3971]
[1642478844559,23.6289,139.45,139.35,44.3971]
[1642478844757,22.5998,139.46,139.35,45.70613598]
[1642478845161,0.25,139.45,139.35,44.3971]
[1642478845360,2.869,139.44,139.35,44.3971]
[1642478845558,25.8961,139.45,139.35,44.1471]
[1642478846767,23.0271,139.45,139.36,0.25]
[1642478846962,23.0271,139.45,139.38,10.7585]
[1642478847160,23.0271,139.45,139.38,58.35082994]
[1642478847360,23.0271,139.45,139.39,0.25]
[1642478848563,25.8961,139.45,139.39,0.25]
[1642478849664,25.8961,139.45,139.39,11.0079]
[1642478849863,26.1561,139.45,139.39,11.2679]
[1642478850764,23.2871,139.45,139.39,11.2679]
[1642478852365,23.2871,139.45,139.39,17.2679]
[1642478852566,23.0271,139.45,139.39,17.2679]
[1642478853770,23.2871,139.45,139.39,17.2679]
[1642478854072,23.2871,139.45,139.39,17.0079]
[1642478854269,23.2871,139.45,139.39,10.7579]
[1642478854471,23.2871,139.45,139.38,47.59232994]
[1642478854871,29.2871,139.45,139.38,47.59232994]
[1642478855072,2.869,139.44,139.38,47.59232994]
[1642478855270,0.25,139.43,139.38,47.59232994]
[1642478855472,2.869,139.44,139.38,58.35092994]
[1642478855671,0.25,139.43,139.38,58.35092994]
[1642478857373,0.25,139.44,139.38,58.35092994]
[1642478857774,0.25,139.44,139.39,0.25]
[1642478858173,0.25,139.44,139.38,58.61092994]
[1642478858383,2.869,139.44,139.38,58.61092994]
[1642478858575,2.869,139.44,139.38,58.35092994]
[1642478858576,3.119,139.44,139.38,58.35092994]
[1642478858975,3.119,139.44,139.38,58.61092994]
[1642478859378,0.25,139.44,139.38,58.61092994]
[1642478860583,0.25,139.44,139.39,0.25]
[1642478861184,23.0371,139.45,139.39,11.0078]
[1642478861682,14.28345062,139.46,139.39,11.2678]
[1642478861882,5.58022616,139.47,139.39,17.2678]
[1642478862082,5.58022616,139.47,139.4,25.9878]
[1642478862286,5.58022616,139.47,139.41,41.3394704]
[1642478862683,5.58022616,139.47,139.41,41.3494704]
[1642478863083,0.25,139.46,139.41,41.3494704]
[1642478863309,3.118,139.46,139.41,41.3494704]
[1642478864214,3.118,139.46,139.41,41.0894704]
[1642478864416,0.25,139.46,139.41,41.0894704]
[1642478876530,0.25,139.46,139.4,10.7572]
[1642478876731,0.25,139.46,139.38,10.7581]
[1642478876931,22.9225,139.46,139.38,11.0081]
[1642478877137,71.82,139.45,139.37,2.868]
[1642478877432,0.25,139.44,139.35,27.2521]
[1642478877631,0.25,139.44,139.36,35.08853967]
[1642478878433,0.25,139.44,139.37,0.25]
[1642478878633,11.0107,139.44,139.37,0.25]
[1642478879034,11.2707,139.44,139.37,0.25]
[1642478879537,17.68566881,139.43,139.35,24.3831]
[1642478879835,10.7635,139.41,139.32,10.7626]
[1642478880034,13.6335,139.41,139.32,10.7626]
[1642478880235,0.25,139.4,139.32,10.7626]
[1642478880736,25.125,139.4,139.33,22.5995]
[1642478880935,25.125,139.4,139.33,25.7195]
[1642478881435,25.125,139.4,139.34,43.5480896]
[1642478881837,24.875,139.4,139.34,43.5480896]
[1642478882035,24.875,139.4,139.35,0.25]
[1642478882435,24.875,139.4,139.34,43.5480896]
[1642478883436,13.099,139.43,139.34,54.3098896]
[1642478883637,10.23,139.43,139.35,3.119]
[1642478883837,0.25,139.42,139.36,24.737]
[1642478884039,4.05345062,139.44,139.37,3.119]
[1642478884239,27.11835062,139.45,139.37,3.119]
[1642478884437,27.11835062,139.45,139.38,61.29037382]
[1642478884643,4.05345062,139.45,139.39,2.869]
[1642478884841,4.05345062,139.45,139.39,3.379]
[1642478885241,24.086,139.46,139.39,3.379]
[1642478885641,24.086,139.46,139.4,10.7574]
[1642478885843,0.25,139.45,139.4,11.0174]
[1642478886645,0.25,139.45,139.41,40.30691945]
[1642478886844,0.25,139.45,139.41,51.06391945]
[1642478887243,0.25,139.45,139.41,40.30691945]
[1642478888450,0.25,139.45,139.41,51.06401945]
[1642478889050,0.25,139.45,139.41,40.30691945]
[1642478891577,0.25,139.45,139.41,51.06411945]
[1642478893484,0.25,139.45,139.41,40.30691945]
[1642478898387,0.25,139.45,139.41,40.56691945]
[1642478898888,0.25,139.45,139.41,51.32421945]
[1642478900092,0.25,139.45,139.41,51.06421945]
[1642478900693,0.25,139.45,139.41,10.7573]
[1642478900893,0.25,139.45,139.39,13.6273]
[1642478901092,3.119,139.45,139.39,13.6273]
[1642478901692,3.119,139.45,139.39,52.78280367]
[1642478902491,0.25,139.45,139.39,49.91380367]
[1642478905495,27.215,139.46,139.4,11.0079]
[1642478905698,0.25,139.45,139.4,11.0079]
[1642478906296,0.25,139.45,139.4,10.7579]
[1642478906698,24.086,139.46,139.4,10.7579]
[1642478906897,24.086,139.46,139.41,11.0069]
[1642478907397,24.086,139.46,139.41,11.2669]
[1642478907797,24.086,139.46,139.42,40.66342435]
[1642478908003,5.58022616,139.47,139.42,51.42002435]
[1642478908199,1.52677554,139.47,139.42,51.42002435]
[1642478909204,0.25,139.46,139.42,51.42002435]
[1642478911704,0.25,139.46,139.42,51.68002435]
[1642478911905,0.25,139.46,139.42,57.68002435]
[1642478912108,6.92145062,139.48,139.42,57.68002435]
[1642478912303,6.92145062,139.48,139.44,10.754]
[1642478912804,2.868,139.48,139.45,0.25]
[1642478913204,2.868,139.48,139.45,48.59592165]
[1642478913404,2.868,139.48,139.45,62.21752165]
[1642478913805,2.868,139.48,139.45,62.47752165]
[1642478914006,2.868,139.48,139.45,62.22752165]
[1642478914308,23.0231,139.51,139.45,59.35952165]
[1642478914504,0.25,139.5,139.45,59.35952165]
[1642478916537,26.1501,139.51,139.45,59.35952165]
[1642478916735,23.2831,139.51,139.45,59.35952165]
[1642478916937,0.25,139.5,139.45,59.35952165]
[1642478919542,2.867,139.52,139.45,59.35952165]
[1642478919743,2.867,139.52,139.46,0.25]
[1642478919941,5.31290985,139.53,139.47,13.6188]
[1642478920242,5.31290985,139.53,139.48,0.25]
[1642478920440,1.25945923,139.53,139.48,0.25]
[1642478920642,1.25945923,139.53,139.48,41.39978357]
[1642478921042,1.25945923,139.53,139.47,2.867]
[1642478921241,3.117,139.52,139.47,2.867]
[1642478922745,13.8715,139.52,139.47,2.867]
[1642478922945,3.117,139.52,139.47,2.867]
[1642478923343,0.25,139.52,139.46,39.84052046]
[1642478928750,2.04310341,139.5,139.46,39.84052046]
[1642478933261,2.30310341,139.5,139.46,39.84052046]
[1642478934360,0.25,139.49,139.43,13.6217]
[1642478934587,0.25,139.49,139.44,24.6157]
[1642478935291,0.25,139.49,139.44,64.89697341]
[1642478935688,2.29310341,139.49,139.44,64.89697341]
[1642478938291,0.25,139.48,139.44,64.89697341]
[1642478938489,2.04310341,139.49,139.44,75.65137341]
[1642478938792,2.04310341,139.49,139.45,0.25]
[1642478938989,2.04310341,139.49,139.45,3.118]
[1642478939389,2.04310341,139.49,139.45,3.378]
[1642478939992,26.62550341,139.5,139.45,3.128]
[1642478940294,0.25,139.49,139.45,11.0133]
[1642478942794,26.88550341,139.5,139.45,11.0133]
[1642478944897,26.88550341,139.5,139.45,13.8803]
[1642478947797,26.88550341,139.5,139.45,11.0133]
[1642478952612,26.38550341,139.5,139.45,11.0133]
[1642478953638,26.25891453,139.5,139.45,11.0133]
[1642478953839,24.21581112,139.5,139.45,11.0133]
[1642478957140,2.04310341,139.51,139.45,11.0133]
[1642478957342,0.25,139.5,139.45,17.0133]
[1642478960744,2.04310341,139.51,139.46,3.117]
[1642478960944,2.04310341,139.51,139.47,10.7518]
[1642478961344,2.04310341,139.51,139.47,11.0118]
[1642478961944,2.04310341,139.52,139.47,11.0118]
[1642478962149,2.29310341,139.52,139.47,11.0118]
[1642478965249,2.55310341,139.52,139.47,11.0118]
[1642478965649,1.74793326,139.52,139.47,11.0118]
[1642478968150,1.49793326,139.52,139.47,11.0118]
[1642478968451,1.49793326,139.52,139.47,13.8788]
[1642478968750,0.26,139.52,139.47,13.8788]
[1642478969149,23.0587,139.53,139.47,13.8788]
[1642478969351,23.0587,139.53,139.47,11.0118]
[1642478969551,0.25,139.52,139.47,11.0118]
[1642478976055,0.25,139.52,139.47,10.7518]
[1642478977257,0.25,139.52,139.47,11.0118]
[1642478980260,0.25,139.52,139.47,17.0118]
[1642478980462,0.25,139.52,139.47,11.0118]
[1642478981959,0.25,139.52,139.47,10.7518]
[1642478983965,0.25,139.52,139.46,23.3912]
[1642478985672,0.25,139.52,139.46,34.1441]
[1642478991001,0.25,139.52,139.46,34.4041]
[1642478992503,0.25,139.52,139.46,10.7529]
[1642478992702,0.25,139.52,139.45,2.867]
[1642478992903,2.867,139.51,139.45,2.867]
[1642478993303,0.25,139.5,139.45,2.867]
[1642478993506,2.867,139.49,139.45,2.867]
[1642478993905,0.25,139.48,139.44,39.80749523]
[1642478994807,0.25,139.49,139.44,40.06749523]
[1642478995307,26.6004,139.51,139.44,40.06749523]
[1642478995308,0.25,139.5,139.44,40.06749523]
[1642478997009,0.25,139.5,139.44,39.56749523]
[1642478998313,0.25,139.5,139.44,50.32169523]
[1642479000115,0.25,139.5,139.44,50.06169523]
[1642479000417,0.25,139.5,139.44,39.30749523]
[1642479001715,0.25,139.5,139.44,39.56749523]
[1642479002115,0.25,139.5,139.44,39.30749523]
[1642479004518,0.25,139.5,139.43,10.755]
[1642479004719,0.25,139.5,139.42,27.3716]
[1642479004918,2.868,139.49,139.41,10.7561]
[1642479005319,0.25,139.48,139.39,25.4459]
[1642479005520,2.868,139.47,139.39,25.4459]
[1642479005720,2.868,139.47,139.4,39.31275693]
[1642479005921,0.25,139.46,139.4,42.18075693]
[1642479007124,0.25,139.47,139.4,2.868]
[1642479007323,2.868,139.46,139.4,2.868]
[1642479007523,65.0,139.44,139.35,4.09101367]
[1642479007723,13.099,139.43,139.33,4.09101367]
[1642479007924,71.82,139.42,139.33,4.09101367]
[1642479008122,52.54739118,139.41,139.33,50.62146985]
[1642479008324,52.79739118,139.41,139.33,50.62146985]
[1642479008528,58.79739118,139.41,139.33,4.09101367]
[1642479008726,60.5864439,139.41,139.33,4.09101367]
[1642479008926,71.6106439,139.41,139.33,4.09101367]
[1642479009128,69.82159118,139.41,139.3,10.7646]
[1642479009328,69.82159118,139.41,139.31,0.25]
[1642479009525,69.82159118,139.41,139.31,45.60565363]
[1642479010128,69.82159118,139.41,139.31,56.36965363]
[1642479010333,69.82159118,139.41,139.31,45.35565363]
[1642479014862,69.82159118,139.41,139.29,23.4484]
[1642479015063,22.5424,139.4,139.29,23.4484]
[1642479015265,10.7674,139.37,139.29,23.4484]
[1642479015464,2.87,139.36,139.29,23.4484]
[1642479015665,3.12,139.36,139.29,23.4484]
[1642479015868,16.29608368,139.36,139.29,23.4484]
[1642479016566,10.7676,139.35,139.29,23.4484]
[1642479016769,0.25,139.34,139.29,23.4484]
[1642479023075,3.121,139.34,139.27,10.7667]
[1642479023276,13.8893,139.34,139.26,22.9973]
[1642479023475,13.8893,139.34,139.25,23.0859]
[1642479023476,91.7093,139.34,139.25,23.0859]
[1642479024077,15.45589588,139.33,139.25,63.10449531]
[1642479024275,13.8912,139.32,139.25,63.10449531]
[1642479026778,19.8912,139.32,139.25,63.10449531]
[1642479026979,20.1512,139.32,139.25,63.10449531]
[1642479028681,14.1512,139.32,139.25,63.10449531]
[1642479029283,20.1512,139.32,139.25,23.0859]
[1642479029485,21.1642,139.32,139.25,23.0859]
[1642479029684,27.1642,139.32,139.25,23.0859]
[1642479029888,21.1642,139.32,139.25,23.0859]
[1642479030285,21.1642,139.32,139.25,59.7158429]
[1642479030485,14.1512,139.32,139.25,59.7158429]
[1642479030687,11.2802,139.32,139.25,59.7158429]
[1642479038127,11.2802,139.32,139.25,23.0859]
[1642479038326,17.2802,139.32,139.25,23.0859]
[1642479038526,20.1512,139.32,139.25,23.0859]
[1642479039527,14.1512,139.32,139.25,23.0859]
[1642479040330,20.1512,139.32,139.25,23.0859]
[1642479041231,28.2862,139.32,139.25,23.0859]
[1642479045067,28.2862,139.32,139.26,41.07643737]
[1642479045268,25.4152,139.32,139.26,41.07643737]
[1642479045470,11.2802,139.32,139.26,41.07643737]
[1642479046872,11.2802,139.32,139.25,23.0859]
[1642479047070,2.871,139.31,139.22,4.09101367]
[1642479047271,10.7746,139.29,139.22,4.09101367]
[1642479047572,13.102,139.28,139.22,4.09101367]
[1642479047870,15.2630209,139.27,139.22,4.09101367]
[1642479048073,2.872,139.26,139.22,4.09101367]
[1642479048272,10.7769,139.25,139.22,4.09101367]
[1642479048470,8.932,139.24,139.22,4.09101367]
[1642479048672,9.182,139.24,139.22,4.09101367]
[1642479048869,39.25,139.23,139.22,4.09101367]
[1642479049072,7.395,139.23,139.22,4.09101367]
[1642479049270,7.395,139.23,139.18,4.09003551]
[1642479049672,18.1734,139.23,139.18,4.09003551]
[1642479050771,18.1734,139.23,139.17,28.83601367]
[1642479050971,18.4334,139.23,139.17,24.745]
[1642479052379,13.651,139.22,139.17,24.745]
[1642479052783,0.25,139.21,139.16,71.66934022]
[1642479056486,2.873,139.22,139.16,71.66934022]
[1642479056689,2.873,139.23,139.17,0.25]
[1642479056886,10.23,139.26,139.17,0.25]
[1642479057086,16.23,139.26,139.17,0.25]
[1642479057890,16.49,139.26,139.17,0.25]
[1642479058587,0.25,139.25,139.17,11.0249]
[1642479058788,0.25,139.25,139.17,17.2849]
[1642479058991,0.25,139.25,139.17,41.3166]
[1642479061293,16.49,139.26,139.17,41.3166]
[1642479061492,2.873,139.25,139.17,41.3166]
[1642479061693,3.123,139.25,139.17,41.3166]
[1642479061892,0.25,139.25,139.17,41.3166]
[1642479062719,0.25,139.26,139.17,41.3166]
[1642479062921,2.873,139.25,139.17,41.3166]
[1642479063323,0.25,139.24,139.17,41.3166]
[1642479064324,0.25,139.25,139.17,41.3166]
[1642479075638,0.25,139.25,139.17,35.3166]
[1642479075838,0.25,139.25,139.17,41.3166]
[1642479076541,0.25,139.25,139.17,35.3166]
[1642479076940,2.883,139.26,139.17,41.3166]
[1642479077148,2.883,139.26,139.17,35.3166]
[1642479077640,2.883,139.26,139.17,41.3166]
[1642479077840,2.883,139.26,139.17,35.3166]
[1642479078240,0.25,139.25,139.17,35.3166]
[1642479078442,0.25,139.25,139.17,41.3166]
[1642479080945,0.25,139.25,139.17,35.3166]
[1642479081444,0.25,139.25,139.17,41.3166]
[1642479083047,0.25,139.25,139.17,35.3166]
[1642479083646,0.25,139.25,139.17,41.3166]
[1642479085447,11.0253,139.25,139.17,41.0566]
[1642479085647,2.873,139.24,139.17,24.2817]
[1642479085946,48.19352898,139.23,139.17,24.2817]
[1642479086146,48.19352898,139.23,139.17,26.32831852]
[1642479086748,58.97032898,139.23,139.17,26.32831852]
[1642479087149,58.97032898,139.23,139.17,24.2817]
[1642479088150,2.873,139.22,139.16,2.04661852]
[1642479088352,11.0285,139.21,139.16,2.04661852]
[1642479088650,2.873,139.2,139.16,2.04661852]
[1642479088850,0.25,139.19,139.16,2.04661852]
[1642479089051,3.124,139.19,139.16,2.04661852]
[1642479089252,6.06,139.18,139.15,2.04661852]
[1642479089654,0.25,139.17,139.15,2.04661852]
[1642479090754,11.0308,139.18,139.11,2.04661852]
[1642479090968,11.0308,139.18,139.12,6.0]
[1642479091161,11.0308,139.18,139.11,8.04661852]
[1642479091859,11.0308,139.18,139.11,48.87773978]
[1642479092860,17.0308,139.18,139.11,48.87773978]
[1642479093059,16.7808,139.18,139.11,48.87773978]
[1642479093261,37.1883,139.2,139.12,0.25]
[1642479093462,34.3143,139.2,139.12,0.25]
[1642479093662,34.3143,139.2,139.12,2.04661852]
[1642479093863,34.3143,139.2,139.12,8.29661852]
[1642479094462,34.3143,139.2,139.14,44.87866713]
[1642479094666,0.25,139.19,139.14,44.87866713]
[1642479094867,11.03,139.19,139.14,44.87866713]
[1642479096091,11.03,139.19,139.13,2.04661852]
[1642479096291,11.03,139.19,139.13,8.04661852]
[1642479096590,11.03,139.19,139.13,6.0]
[1642479096791,11.03,139.19,139.12,31.83721852]
[1642479097092,11.03,139.19,139.13,46.0707755]
[1642479097293,11.03,139.19,139.13,52.0707755]
[1642479097492,11.03,139.19,139.13,6.0]
[1642479097694,11.03,139.19,139.12,25.83721852]
[1642479097994,11.03,139.19,139.12,31.83721852]
[1642479098291,11.03,139.19,139.12,8.29661852]
[1642479098492,11.03,139.19,139.12,43.47205689]
[1642479100395,11.29,139.19,139.12,43.47205689]
[1642479100598,13.6551,139.18,139.12,43.22205689]
[1642479100798,0.25,139.17,139.12,43.22205689]
[1642479102095,0.25,139.18,139.12,43.22205689]
[1642479102297,0.25,139.18,139.12,41.17543837]
[1642479102697,0.25,139.18,139.13,0.25]
[1642479102897,0.25,139.19,139.13,0.25]
[1642479104105,0.25,139.19,139.13,2.29661852]
[1642479104907,0.25,139.19,139.13,8.29661852]
[1642479105307,0.25,139.19,139.13,2.29661852]
[1642479105810,0.25,139.19,139.13,8.29661852]
[1642479106010,0.25,139.19,139.13,2.29661852]
[1642479106209,0.25,139.19,139.13,6.25]
[1642479106409,0.25,139.19,139.13,0.25]
[1642479106610,0.25,139.19,139.12,43.22205689]
[1642479108344,0.25,139.19,139.12,54.00085689]
[1642479108743,0.25,139.19,139.12,43.22205689]
[1642479110648,11.03,139.19,139.12,43.22205689]
[1642479110851,27.36051452,139.19,139.12,43.22205689]
[1642479111746,11.03,139.19,139.12,43.22205689]
[1642479114852,11.29,139.19,139.12,43.22205689]
[1642479115854,33.8034,139.2,139.13,0.25]
[1642479116254,0.25,139.19,139.13,0.25]
[1642479117161,0.25,139.19,139.13,2.29661852]
[1642479117357,0.25,139.19,139.13,31.52871852]
[1642479118255,0.25,139.19,139.13,25.52871852]
[1642479119256,0.25,139.19,139.13,31.52871852]
[1642479119658,0.25,139.19,139.13,25.52871852]
[1642479119860,0.25,139.19,139.13,25.27871852]
[1642479120257,3.124,139.19,139.13,31.27871852]
[1642479120456,0.25,139.19,139.13,31.27871852]
[1642479120858,23.0242,139.2,139.13,31.27871852]
[1642479121657,23.0242,139.2,139.13,25.27871852]
[1642479121858,23.0242,139.2,139.13,31.27871852]
[1642479122859,45.2970144,139.2,139.13,31.01871852]
[1642479123060,0.25,139.19,139.13,31.01871852]
[1642479123260,2.874,139.18,139.13,2.04661852]
[1642479123459,3.124,139.19,139.13,2.04661852]
[1642479123658,3.124,139.19,139.13,8.04661852]
[1642479124060,3.124,139.19,139.12,41.17543837]
[1642479124261,3.384,139.19,139.12,41.17543837]
[1642479124561,14.1644,139.19,139.12,41.17543837]
[1642479125161,14.1644,139.19,139.12,6.0]
[1642479125361,14.1644,139.19,139.11,30.58021852]
[1642479125963,85.9844,139.19,139.11,30.58021852]
[1642479126764,85.9844,139.19,139.11,28.5336]
[1642479126765,91.9844,139.19,139.11,28.5336]
[1642479127364,20.1644,139.19,139.11,28.5336]
[1642479127566,71.82,139.18,139.11,28.5336]
[1642479127863,0.25,139.17,139.12,39.96553081]
[1642479128063,0.25,139.17,139.11,28.5336]
[1642479128563,0.25,139.17,139.11,30.58021852]
[1642479129265,38.2573992,139.17,139.11,30.58021852]
[1642479129465,0.25,139.17,139.11,30.58021852]
[1642479129665,11.0315,139.17,139.11,30.58021852]
[1642479131467,11.2915,139.17,139.12,39.08327279]
[1642479131669,0.51,139.17,139.12,39.08327279]
[1642479131865,0.25,139.17,139.12,45.08327279]
[1642479133067,0.25,139.17,139.12,6.0]
[1642479133268,3.124,139.17,139.11,30.58021852]
[1642479134272,9.16293764,139.16,139.11,8.04661852]
[1642479134670,0.25,139.15,139.11,8.04661852]
[1642479134874,0.25,139.15,139.11,6.0]
[1642479135273,0.25,139.15,139.09,30.9346]
[1642479136877,0.25,139.15,139.09,24.9346]
[1642479138778,0.25,139.15,139.1,0.25]
[1642479139278,0.25,139.15,139.09,24.9346]
[1642479139685,11.0332,139.15,139.09,24.9346]
[1642479139881,13.9082,139.15,139.08,2.04661852]
[1642479140080,24.1382,139.15,139.08,8.04661852]
[1642479140681,47.6123,139.15,139.08,8.04661852]
[1642479141303,47.8723,139.15,139.08,8.04661852]
[1642479142503,47.8723,139.15,139.08,6.0]
[1642479142702,71.82,139.14,139.08,6.0]
[1642479142904,48.59661264,139.13,139.07,8.04661852]
[1642479143104,48.59661264,139.13,139.08,0.25]
[1642479143504,120.41661264,139.13,139.08,0.25]
[1642479144405,48.59661264,139.13,139.08,0.25]
[1642479146305,2.875,139.12,139.07,8.04661852]
[1642479146505,10.7864,139.11,139.07,8.04661852]
[1642479146708,11.0364,139.11,139.07,6.0]
[1642479146910,11.0364,139.11,139.06,32.27291852]
[1642479147107,11.2964,139.11,139.06,32.27291852]
[1642479147317,11.2964,139.11,139.06,8.04661852]
[1642479148109,11.2964,139.11,139.06,6.0]
[1642479148310,11.2964,139.11,139.03,50.79780947]
[1642479148513,11.2964,139.11,139.04,24.1006]
[1642479148914,11.2964,139.11,139.04,30.1006]
[1642479149411,17.2964,139.11,139.04,24.1006]
[1642479150512,89.1164,139.11,139.04,24.1006]
[1642479152915,0.25,139.11,139.04,24.1006]
[1642479153118,23.6479,139.12,139.04,24.1006]
[1642479153318,10.23,139.13,139.04,30.1006]
[1642479153516,1.85027564,139.14,139.04,30.1006]
[1642479153718,2.875,139.13,139.04,30.3606]
[1642479154117,2.875,139.13,139.04,40.8854]
[1642479154316,2.875,139.13,139.04,42.93201852]
[1642479154516,2.875,139.13,139.04,32.14721852]
[1642479154517,0.25,139.12,139.04,32.14721852]
[1642479154716,2.876,139.11,139.04,26.14721852]
[1642479155117,0.25,139.1,139.04,26.14721852]
[1642479155321,0.25,139.1,139.04,25.89721852]
[1642479155516,0.25,139.1,139.04,23.8506]
[1642479156721,0.25,139.11,139.04,23.8506]
[1642479157119,0.25,139.11,139.04,34.6355]
[1642479157317,0.25,139.11,139.04,34.8955]
[1642479157518,0.25,139.11,139.04,24.1106]
[1642479158119,0.25,139.11,139.04,23.8506]
[1642479158418,11.0362,139.11,139.04,23.8506]
[1642479159020,11.0362,139.11,139.03,44.79780947]
[1642479159218,27.2662,139.11,139.03,50.79780947]
[1642479159619,10.789,139.08,139.03,48.75119095]
[1642479159819,10.789,139.08,139.03,6.0]
[1642479159820,82.609,139.08,139.03,6.0]
[1642479160021,10.789,139.08,139.03,6.0]
[1642479160223,0.26,139.08,139.02,32.77541852]
[1642479160425,0.26,139.08,139.02,30.7288]
[1642479160623,0.25,139.08,139.02,30.9888]
[1642479160826,29.37707564,139.11,139.03,44.41680134]
[1642479161022,23.37707564,139.11,139.03,44.66680134]
[1642479161222,23.37707564,139.11,139.04,23.5089]
[1642479161523,21.5268,139.11,139.04,23.5089]
[1642479166424,27.5268,139.11,139.04,23.5089]
[1642479170229,2.876,139.1,139.04,23.5089]
[1642479170430,13.106,139.1,139.04,23.5089]
[1642479170631,0.25,139.09,139.04,23.5089]
[1642479172533,11.0379,139.09,139.04,23.5089]
[1642479173336,27.5279,139.09,139.04,23.5089]
[1642479175267,27.5279,139.09,139.04,29.5089]
[1642479177369,27.5279,139.09,139.04,23.5089]
[1642479177669,27.5279,139.09,139.04,29.5089]
[1642479177969,27.5279,139.09,139.04,23.5089]
[1642479179469,21.5279,139.09,139.04,23.5089]
[1642479181271,27.5279,139.09,139.04,23.5089]
[1642479181875,99.3479,139.09,139.04,23.5089]
[1642479182071,27.5279,139.09,139.04,23.5089]
[1642479182473,99.3479,139.09,139.04,23.5089]